fUSD/lending_fUSD_20250220
["ID","MTS","AMOUNT","RATE_DAILY","PERIOD"]
[353810151,1740066395937,-150.0,0.00010836,2]
[353810152,1740066395959,-649.55375844,0.00010858,2]
[353810153,1740066395982,-155.26,0.00010872,2]
[353810154,1740066396006,-500.0,0.0001089,2]
[353810155,1740066396028,-155.26,0.00010891,2]
[353810156,1740066396053,-150.0,0.00010905,2]
[353810157,1740066396074,-264.77,0.00010908,2]
[353810158,1740066396096,-155.26,0.00010911,2]
[353810159,1740066396118,-848.24,0.00010912,2]
[353810160,1740066396142,-150.0,0.00010925,2]
[353810161,1740066396167,-155.26,0.0001093,2]
[353810162,1740066396190,-369.28508298,0.00010946,2]
[353810163,1740066396212,-155.26,0.00010949,2]
[353810164,1740066396235,-150.0,0.00010957,2]
[353810165,1740066396415,1140.81942229,0.00010729,2]
[353810166,1740066421588,300.0,0.00010957,2]
[353810167,1740066481302,300.0,0.00010957,2]
[353810168,1740066496374,1000.0,0.00010596,2]
[353810170,1740066510360,159.13,8.767e-05,2]
[353810171,1740066542542,300.0,0.00010957,2]
[353810172,1740066601282,300.0,0.00010957,2]
[353810181,1740066631650,-500.0,0.00010958,2]
[353810182,1740066631659,-500.0,0.00010958,7]
[353810183,1740066631668,-500.0,0.00010958,2]
[353810184,1740066631677,-500.0,0.00010958,2]
[353810185,1740066631687,-500.0,0.00010958,2]
[353810186,1740066631696,-500.0,0.00010958,2]
[353810187,1740066631705,-500.0,0.00010958,2]
[353810188,1740066631715,-500.0,0.00010958,2]
[353810189,1740066631724,-500.0,0.00010958,2]
[353810190,1740066631734,-500.0,0.00010958,2]
[353810191,1740066631743,-500.0,0.00010958,2]
[353810192,1740066631754,-150.0,0.00010958,2]
[353810193,1740066631766,-150.0,0.00010959,2]
[353810194,1740066631777,-155.26,0.00010968,2]
[353810195,1740066631787,-150.0,0.00010986,2]
[353810196,1740066631797,-155.26,0.00010987,2]
[353810197,1740066631806,-550.0,0.00011,2]
[353810198,1740066631815,-155.26,0.00011007,2]
[353810199,1740066631826,-155.26,0.00011026,2]
[353810200,1740066631835,-500.0,0.00011041,2]
[353810201,1740066631845,-500.0,0.00011041,2]
[353810202,1740066631856,-500.0,0.00011041,2]
[353810203,1740066631866,-500.0,0.00011041,2]
[353810204,1740066631877,-500.0,0.00011041,2]
[353810205,1740066631887,-500.0,0.00011041,2]
[353810206,1740066631897,-500.0,0.00011041,2]
[353810207,1740066631906,-500.0,0.00011041,2]
[353810208,1740066631916,-500.0,0.00011041,2]
[353810209,1740066631925,-502.08,0.00011041,2]
[353810210,1740066631934,-497.83,0.00011041,2]
[353810211,1740066631943,-18.61648172,0.00011045,2]
[353810216,1740066632172,-136.64351828,0.00011045,2]
[353810218,1740066632182,-294.68859201,0.0001105,2]
[353810220,1740066632191,-155.26,0.00011064,2]
[353810222,1740066632201,-155.26,0.00011083,2]
[353810225,1740066632216,-155.26,0.00011102,2]
[353810227,1740066632226,-132.18487734,0.00011122,2]
[353810260,1740066635365,-23.07512266,0.00011122,2]
[353810261,1740066635375,-500.0,0.00011123,2]
[353810262,1740066635384,-500.0,0.00011123,2]
[353810263,1740066635393,-500.0,0.00011123,2]
[353810264,1740066635403,-500.0,0.00011123,2]
[353810265,1740066635413,-500.0,0.00011123,2]
[353810266,1740066635424,-500.0,0.00011123,2]
[353810267,1740066635433,-500.0,0.00011123,2]
[353810268,1740066635443,-508.37,0.00011123,2]
[353810269,1740066635452,-155.26,0.00011141,2]
[353810270,1740066635463,-155.26,0.0001116,2]
[353810271,1740066635472,-155.26,0.00011179,2]
[353810272,1740066635482,-155.26,0.00011198,2]
[353810273,1740066635491,-500.0,0.00011205,2]
[353810274,1740066635501,-500.0,0.00011205,2]
[353810275,1740066635510,-500.0,0.00011205,2]
[353810276,1740066635519,-500.0,0.00011205,2]
[353810277,1740066635528,-500.0,0.00011205,2]
[353810278,1740066635537,-500.0,0.00011205,2]
[353810279,1740066635548,-500.0,0.00011205,2]
[353810280,1740066635558,-541.2947987,0.00011225,2]
[353810281,1740066635568,-150.0,0.00011244,2]
[353810282,1740066635577,-150.0,0.00011244,2]
[353810283,1740066635587,-150.0,0.00011244,2]
[353810284,1740066635596,-150.0,0.00011244,2]
[353810285,1740066635606,-491.4863,0.00011269,2]
[353810286,1740066635615,-500.0,0.00011287,2]
[353810287,1740066635625,-500.0,0.00011287,2]
[353810288,1740066635634,-500.0,0.00011287,2]
[353810289,1740066635804,-500.0,0.00011287,2]
[353810290,1740066635815,-500.0,0.00011287,2]
[353810291,1740066635824,-1000.0,0.00011305,2]
[353810292,1740066635834,-1274.0,0.00011325,2]
[353810293,1740066635843,-2027.0,0.00011325,2]
[353810294,1740066635853,-639.0,0.00011325,2]
[353810295,1740066635863,-569.0,0.00011325,2]
[353810296,1740066635872,-1786.0,0.00011325,2]
[353810297,1740066635881,-371.659,0.00011325,2]
[353810298,1740066635890,-1265.0,0.00011325,2]
[353810299,1740066635899,-908.0,0.00011325,2]
[353810300,1740066635908,-539.0,0.00011325,2]
[353810301,1740066635917,-4031.0,0.00011325,2]
[353810302,1740066635926,-1009.0,0.00011325,2]
[353810303,1740066635936,-150.0,0.00011325,2]
[353810304,1740066635945,-163.23,0.00011325,2]
[353810305,1740066635955,-3919.0,0.00011325,2]
[353810306,1740066635964,-182.369,0.00011325,2]
[353810307,1740066635974,-282.0,0.0001136,2]
[353810308,1740066635983,-208.65864284,0.0001136,2]
[353810309,1740066635993,-500.0,0.00011369,2]
[353810310,1740066636003,-512.52,0.00011369,2]
[353810311,1740066636012,-521.84,0.00011369,2]
[353810312,1740066636021,-500.0,0.00011369,2]
[353810313,1740066636030,-472.2,0.00011369,2]
[353810314,1740066636040,-440.27,0.000114,2]
[353810315,1740066636050,-500.0,0.00011452,2]
[353810316,1740066636059,-588.57,0.00011452,2]
[353810317,1740066636069,-239.36,0.00011479,2]
[353810318,1740066636078,-302.58,0.00011479,2]
[353810319,1740066636088,-439.24,0.00011479,2]
[353810320,1740066636097,-150.0,0.00011479,2]
[353810321,1740066636107,-435.88,0.00011534,2]
[353810322,1740066636117,-282.0,0.0001165,2]
[353810323,1740066636127,-150.0,0.00011761,2]
[353810324,1740066636138,-153.85215,0.00011805,2]
[353810325,1740066636148,-221.028,0.00011805,2]
[353810326,1740066636158,-2181.965,0.00011809,2]
[353810327,1740066636167,-150.0,0.00011868,2]
[353810328,1740066636177,-1000.0,0.00011921,2]
[353810329,1740066636187,-282.0,0.0001194,2]
[353810330,1740066636197,-212.950722,0.00011974,2]
[353810331,1740066636206,-150.0,0.00011998,2]
[353810332,1740066636216,-420.0,0.00012041,2]
[353810333,1740066636225,-150.0,0.00012054,2]
[353810334,1740066636234,-1142.79,0.00012054,2]
[353810335,1740066636244,-150.0,0.00012069,2]
[353810336,1740066636254,-427.7553135,0.00012083,2]
[353810337,1740066636263,-16079.74,0.00012087,2]
[353810338,1740066636272,-662.34,0.00012087,2]
[353810339,1740066636282,-487.86,0.00012087,2]
[353810340,1740066636291,-150.99,0.00012087,2]
[353810341,1740066636300,-2319.57,0.00012087,2]
[353810342,1740066636309,-150.0,0.00012155,2]
[353810343,1740066636318,-150.0,0.00012158,2]
[353810344,1740066636327,-266.799,0.000122,2]
[353810345,1740066636337,-31057.1881,0.000122,2]
[353810346,1740066636346,-799.8443,0.000122,2]
[353810347,1740066636355,-2571.56122,0.0001221,2]
[353810348,1740066636364,-1232.5884,0.0001222,2]
[353810349,1740066636374,-282.0,0.0001223,2]
[353810350,1740066636383,-541.29479868,0.0001224,2]
[353810351,1740066636392,-2500.0,0.00012298,2]
[353810352,1740066636401,-1000.0,0.000123,2]
[353810353,1740066636412,-637.1,0.000123,2]
[353810354,1740066636423,-383.35042807,0.000123,2]
[353810355,1740066636432,-11235.6402,0.000123,2]
[353810356,1740066636441,-186.5717595,0.000123,2]
[353810357,1740066636451,-171.51720243,0.000123,2]
[353810358,1740066636460,-169.28325998,0.000123,2]
[353810359,1740066636469,-314.83852421,0.000123,2]
[353810360,1740066636478,-150.0,0.00012301,2]
[353810361,1740066636489,-150.0,0.00012307,2]
[353810362,1740066636498,-416.98492638,0.00012312,2]
[353810363,1740066636508,-3445.4879476,0.0001232,2]
[353810364,1740066636517,-6186.5962999,0.0001232,2]
[353810365,1740066636526,-1507.6979115,0.0001232,2]
[353810366,1740066636535,-468.5007729,0.0001232,2]
[353810367,1740066636544,-150.0,0.00012325,2]
[353810368,1740066636553,-150.0,0.00012325,2]
[353810369,1740066636563,-150.0,0.00012325,2]
[353810370,1740066636572,-150.0,0.00012325,2]
[353810371,1740066636581,-8527.48976998,0.00012325,2]
[353810372,1740066636592,-4133.07901132,0.00012325,2]
[353810373,1740066636601,-737.091021,0.00012325,2]
[353810374,1740066636611,-69432.37756811,0.00012325,2]
[353810375,1740066636620,-1142.79,0.00012328,2]
[353810376,1740066636629,-918.4254385,0.0001233,2]
[353810377,1740066636639,-49538.71194879,0.0001233,2]
[353810378,1740066636648,-26517.59060432,0.00012332,2]
[353810379,1740066636668,-650.65534732,0.00012332,2]
[353810380,1740066636679,-679.46984672,0.00012332,2]
[353810381,1740066636691,-1559.46701469,0.00012332,2]
[353810382,1740066636701,-14383.6938477,0.00012332,2]
[353810383,1740066636712,-354.92370002,0.00012332,2]
[353810384,1740066636723,-712.02367317,0.00012332,2]
[353810385,1740066636734,-1997.21734795,0.00012332,2]
[353810386,1740066636752,-1736.92088886,0.00012332,2]
[353810387,1740066636764,-1144.53643172,0.00012332,2]
[353810388,1740066636779,-274.7353825,0.00012332,2]
[353810389,1740066636790,-458.02100012,0.00012332,2]
[353810390,1740066636801,-691.49400045,0.00012332,2]
[353810391,1740066636812,-384.4865941,0.00012332,2]
[353810392,1740066636824,-293.998,0.00012332,2]
[353810393,1740066636835,-308.0963464,0.00012332,2]
[353810394,1740066636847,-292.13799996,0.00012332,2]
[353810395,1740066636858,-263.77,0.00012332,2]
[353810396,1740066636870,-13990.06597559,0.00012332,2]
[353810397,1740066636895,-537.44719657,0.00012332,2]
[353810401,1740066637670,-665.71276693,0.00010958,2]
[353810402,1740066637679,-1110.0,0.00011325,2]
[353810403,1740066637689,-182411.29828993,0.00012332,2]
[353810404,1740066637701,-3883.155,0.00012332,2]
[353810405,1740066637712,-4676.235,0.00012332,2]
[353810406,1740066637744,-26142.52573096,0.00012332,2]
[353810407,1740066637754,-4305.42508206,0.00012333,2]
[353810408,1740066637763,-11338.27676459,0.00012336,2]
[353810409,1740066637773,-859.55321798,0.00012337,2]
[353810410,1740066637784,-17117.00041981,0.00012338,2]
[353810411,1740066637793,-39641.56768467,0.00012339,2]
[353810412,1740066637821,-43325.61349437,0.00012339,2]
[353810413,1740066637830,-968.19576669,0.0001234,2]
[353810414,1740066637840,-26170.63781449,0.00012343,2]
[353810420,1740066639994,-534.76740027,0.00012343,2]
[353810421,1740066640005,-3185.0,0.00012343,2]
[353810422,1740066640111,-663.31230371,0.00012343,2]
[353810423,1740066640237,-393.03095498,0.00012343,2]
[353810424,1740066640249,-329.0207687,0.00012343,2]
[353810425,1740066640261,-426.73155788,0.00012343,2]
[353810447,1740066642734,-307.28786812,0.00012343,2]
[353810450,1740066642746,-33152.26907839,0.00012343,2]
[353810453,1740066642755,-554.14950934,0.00012343,2]
[353810456,1740066642764,-11338.27676459,0.00012345,2]
[353810459,1740066642774,-5086.00933021,0.00012345,2]
[353810462,1740066642786,-11296.71866359,0.00012345,2]
[353810465,1740066642796,-286.51773933,0.00012346,2]
[353810468,1740066642805,-11378.8539836,0.00012347,2]
[353810471,1740066642816,-1806.49803386,0.00012347,2]
[353810475,1740066642827,-2525.89279955,0.00012347,2]
[353810490,1740066642989,-294.14994472,0.00012347,2]
[353810493,1740066643000,-464.504,0.00012347,2]
[353810525,1740066645781,-487.8950002,0.00012347,2]
[353810526,1740066645794,-497.46573244,0.00012347,2]
[353810527,1740066645876,-420.4240141,0.00012347,2]
[353810528,1740066645888,-559.18729511,0.00012347,2]
[353810529,1740066645900,-8287.57443519,0.00012347,2]
[353810530,1740066645912,-38439.61250777,0.00012347,2]
[353810531,1740066645921,-200.0,0.00012348,2]
[353810532,1740066645932,-482.23520727,0.0001235,2]
[353810533,1740066645941,-1700.28799067,0.00012351,2]
[353810534,1740066645951,-200.0,0.00012351,2]
[353810535,1740066645961,-200.0,0.00012352,2]
[353810536,1740066645972,-554.14950934,0.00012354,2]
[353810537,1740066645983,-554.14950934,0.00012355,2]
[353810538,1740066645993,-17117.00041981,0.00012355,2]
[353810539,1740066646003,-1361.43653756,0.00012355,2]
[353810540,1740066646012,-9633.21443368,0.00012356,2]
[353810541,1740066646025,-376.87925389,0.00012356,2]
[353810542,1740066646037,-1006.23121975,0.00012356,2]
[353810543,1740066646053,-360.08234564,0.00012356,2]
[353810544,1740066646100,-1351.93261275,0.00012356,2]
[353810545,1740066646113,-3654.38812809,0.00012356,2]
[353810546,1740066646123,-968.19576669,0.00012356,2]
[353810547,1740066646132,-1150.34875379,0.00012356,2]
[353810548,1740066646142,-1446.70562179,0.00012357,2]
[353810549,1740066646151,-157389.11501428,0.00012357,2]
[353810557,1740066771805,12904.86650083,0.00020525,120]
[353810558,1740066970428,646.95,0.00013918,30]
[353810559,1740067290734,150.0,0.00016148,120]
[353810560,1740067350753,150.0,0.00017136,120]
[353810561,1740067410785,150.0,0.00017287,120]
[353810562,1740067418740,500.0,0.0002,120]
[353810563,1740067493882,490.34,9.265e-05,2]
[353810564,1740067630565,273.17,8.767e-05,2]
[353810566,1740067711535,-550.0,0.00011,2]
[353810567,1740067711557,-661.831,0.00011022,2]
[353810568,1740067711580,-1116.186,0.00011022,2]
[353810569,1740067711601,-150.0,0.00011079,2]
[353810570,1740067714250,167.75041321,0.00010979,2]
[353810573,1740067831759,-150.0,0.00011145,2]
[353810574,1740067831769,-328.31588386,0.00011203,2]
[353810575,1740067831782,-788.58254264,0.00011203,2]
[353810576,1740067831819,-607.75,0.00011203,2]
[353810577,1740067831831,-2186.3515735,0.00011203,2]
[353810578,1740067831841,-150.0,0.00011203,2]
[353810579,1740067831852,-161.93,0.00011299,2]
[353810580,1740067831861,-230.9,0.00011313,2]
[353810581,1740067831871,-150.0,0.00011327,2]
[353810582,1740067831881,-300.0,0.00011327,2]
[353810583,1740067831891,-200.0,0.00011327,2]
[353810584,1740067831902,-150.0,0.00011328,2]
[353810585,1740067831911,-150.0,0.00011328,2]
[353810586,1740067831921,-2024.0,0.00011328,2]
[353810587,1740067831931,-1273.0,0.00011328,2]
[353810588,1740067831941,-639.0,0.00011328,2]
[353810589,1740067831951,-569.0,0.00011328,2]
[353810590,1740067831961,-1689.614,0.00011328,2]
[353810591,1740067831971,-514.292,0.00011328,2]
[353810592,1740067831980,-150.99,0.00011328,2]
[353810593,1740067831990,-890.34,0.00011342,2]
[353810594,1740067832001,-945.82,0.00011388,2]
[353810595,1740067832011,-509.4,0.00011388,2]
[353810596,1740067832022,-1500.0,0.00011413,2]
[353810597,1740067832033,-561.31,0.00011419,2]
[353810598,1740067832044,-500.0,0.00011425,2]
[353810599,1740067832054,-439.46,0.00011452,2]
[353810600,1740067832064,-490.34,0.00011529,2]
[353810601,1740067832075,-1007.47,0.00011541,2]
[353810602,1740067832085,-776.07,0.000116,2]
[353810603,1740067832095,-440.27,0.000116,2]
[353810604,1740067832106,-364.13,0.00011678,2]
[353810605,1740067832120,-150.0,0.00011726,2]
[353810606,1740067832132,-987.13,0.00011726,2]
[353810607,1740067832142,-150.0,0.00011726,2]
[353810608,1740067832152,-439.24,0.00011726,2]
[353810609,1740067832162,-150.0,0.00011726,2]
[353810610,1740067832172,-984.55,0.00011726,2]
[353810611,1740067832182,-439.24,0.00011726,2]
[353810612,1740067832192,-150.0,0.00011726,2]
[353810613,1740067832203,-150.0,0.00011726,2]
[353810614,1740067832215,-150.0,0.00011726,2]
[353810615,1740067832226,-150.0,0.00011726,2]
[353810616,1740067832236,-189.62,0.00011726,2]
[353810617,1740067832247,-150.0,0.00011726,2]
[353810618,1740067832257,-150.0,0.00011726,2]
[353810619,1740067832267,-151.06,0.00011726,2]
[353810620,1740067832278,-168.05,0.00011784,2]
[353810621,1740067832288,-150.66,0.000118,2]
[353810622,1740067832298,-150.22,0.000118,2]
[353810623,1740067832308,-440.27,0.000118,2]
[353810624,1740067832319,-150.0,0.000118,2]
[353810625,1740067832329,-150.0,0.000118,2]
[353810626,1740067832339,-776.07,0.000118,2]
[353810627,1740067832349,-249.7,0.000118,2]
[353810628,1740067832359,-987.13,0.000118,2]
[353810629,1740067832368,-439.24,0.000118,2]
[353810630,1740067832378,-150.0,0.000118,2]
[353810631,1740067832388,-776.07,0.000118,2]
[353810632,1740067832398,-1047.55,0.00012054,2]
[353810633,1740067832409,-776.07,0.000121,2]
[353810634,1740067832419,-561.1379975,0.00012109,2]
[353810635,1740067832429,-541.29479868,0.000122,2]
[353810636,1740067832439,-2142.96768,0.0001223,2]
[353810637,1740067832449,-432.37606579,0.00012236,2]
[353810638,1740067832459,-866.80695977,0.000123,2]
[353810639,1740067832480,-724.0,0.000123,2]
[353810640,1740067832492,-960.56416677,0.000123,2]
[353810641,1740067832505,-2448.62887346,0.000123,2]
[353810642,1740067832515,-55555.0,0.000123,2]
[353810643,1740067832525,-150.6953,0.000123,2]
[353810644,1740067832535,-328.58608116,0.000123,2]
[353810645,1740067832545,-1745.572,0.000123,2]
[353810646,1740067832555,-186.57175949,0.000123,2]
[353810647,1740067832565,-175.94871696,0.000123,2]
[353810648,1740067832576,-12733.37858561,0.000123,2]
[353810649,1740067832586,-239.13515438,0.000123,2]
[353810650,1740067832596,-210.94046207,0.000123,2]
[353810651,1740067832606,-378.00755713,0.000123,2]
[353810652,1740067832618,-314.83852421,0.000123,2]
[353810653,1740067832628,-155.15627708,0.000123,2]
[353810654,1740067832638,-12733.37858556,0.00012309,2]
[353810655,1740067832647,-12733.37858556,0.00012318,2]
[353810656,1740067832658,-10846.75417756,0.00012327,2]
[353810657,1740067836177,-305.98,0.00011406,2]
[353810658,1740067836189,-694.02,0.00011406,2]
[353810659,1740067836199,-5903.95245359,0.000123,2]
[353810660,1740067836230,-334.50747262,0.000123,2]
[353810661,1740067836242,-996.18936943,0.000123,2]
[353810662,1740067836252,-1886.624408,0.00012327,2]
[353810663,1740067836262,-1047.55,0.00012328,2]
[353810664,1740067836272,-560.93106009,0.00012335,2]
[353810665,1740067836282,-2906.02199631,0.00012336,2]
[353810666,1740067836294,-1238.0,0.00012336,2]
[353810667,1740067836306,-8589.35658925,0.00012336,2]
[353810668,1740067836316,-12733.37858556,0.00012345,2]
[353810669,1740067836326,-5239.5124219,0.00012346,2]
[353810670,1740067836336,-2448.8752679,0.00012347,2]
[353810671,1740067836346,-8590.69811818,0.00012354,2]
[353810673,1740067836817,-4142.68046738,0.00012354,2]
[353810674,1740067836827,-289.1952874,0.00012356,2]
[353810677,1740067836838,-1583.5180203,0.00012356,2]
[353810679,1740067836849,-13564.58862352,0.00012357,2]
[353810700,1740067837766,-11867.53221894,0.00012357,2]
[353810701,1740067837876,-2289.26397623,0.00012357,2]
[353810702,1740067837927,-1196.73651874,0.00012357,2]
[353810703,1740067837980,-403.3,0.00012357,2]
[353810739,1740067840022,-1110.0,0.00011203,2]
[353810740,1740067840032,-278.83144935,0.00012357,2]
[353810741,1740067840338,-285.81595013,0.00012357,2]
[353810742,1740067840444,-275.84223156,0.00012357,2]
[353810759,1740067842801,-1121.06801891,0.00012357,2]
[353810787,1740067846147,-364.2650004,0.00012357,2]
[353810795,1740068284539,614.6,0.00013918,30]
[353810796,1740068330901,659.22,0.00010963,2]
[353810797,1740068332461,165.85,0.00010963,2]
[353810798,1740068385484,3068.2,0.00010956,2]
[353810799,1740068447806,250.0,0.00010956,2]
[353810800,1740068448288,193.98,0.00010956,2]
[353810801,1740068487031,-1852.42,0.00011111,2]
[353810802,1740068487057,-158.509537,0.0001116,3]
[353810803,1740068487079,-4296.88,0.00011254,2]
[353810804,1740068487100,-913.07095668,0.0001129,2]
[353810805,1740068487124,-1327.735,0.00011331,2]
[353810806,1740068487145,-150.0,0.00011331,2]
[353810807,1740068487165,-634.0,0.00011331,2]
[353810808,1740068487187,-218.078,0.00011331,2]
[353810809,1740068487209,-150.0,0.00011331,2]
[353810810,1740068487233,-334.89,0.00011332,2]
[353810811,1740068487259,-507.78,0.00011335,2]
[353810812,1740068487282,-496.75,0.00011337,2]
[353810813,1740068487305,-507.96,0.00011341,2]
[353810814,1740068487328,-498.77,0.00011347,2]
[353810815,1740068487351,-494.17,0.00011347,2]
[353810816,1740068487376,-496.37,0.00011347,2]
[353810817,1740068487399,-27895.34,0.00011347,2]
[353810818,1740068487424,-150.0,0.00011356,2]
[353810819,1740068487451,-150.0,0.0001139,2]
[353810820,1740068487475,-150.0,0.00011394,2]
[353810821,1740068487497,-150.0,0.00011438,2]
[353810822,1740068487520,-804.52,0.00011439,2]
[353810823,1740068487545,-495.2,0.00011439,2]
[353810824,1740068487569,-490.24,0.00011439,2]
[353810825,1740068487593,-494.35,0.00011439,2]
[353810826,1740068487618,-504.27,0.00011439,2]
[353810827,1740068487643,-507.0,0.00011439,2]
[353810828,1740068487665,-18633.71,0.00011443,2]
[353810829,1740068487691,-150.0,0.00011457,2]
[353810830,1740068487715,-150.0,0.00011474,2]
[353810831,1740068487738,-2751.0,0.00011507,2]
[353810832,1740068487764,-150.0,0.00011526,2]
[353810833,1740068487787,-208.85,0.00011544,2]
[353810834,1740068487812,-150.0,0.00011566,2]
[353810835,1740068487836,-150.0,0.00011646,2]
[353810836,1740068487859,-150.0,0.00011658,2]
[353810837,1740068487883,-150.0,0.0001167,2]
[353810838,1740068488107,-150.0,0.0001181,2]
[353810839,1740068488135,-150.0,0.00011846,2]
[353810840,1740068488157,-600.37667028,0.000119,2]
[353810841,1740068488181,-150.0,0.00011926,2]
[353810842,1740068488204,-138.37333802,0.00011951,2]
[353810843,1740068592075,499.54,9.297e-05,2]
[353810844,1740068644884,158.0,9.297e-05,3]
[353810845,1740068705854,158.0,9.297e-05,3]
[353810846,1740068706354,171.0,9.297e-05,3]
[353810848,1740068733448,156.85,8.767e-05,2]
[353810849,1740068764761,159.0,9.297e-05,3]
[353810850,1740068824701,159.0,9.297e-05,3]
[353810851,1740068884863,159.0,9.297e-05,3]
[353810852,1740068944750,159.0,9.297e-05,3]
[353810858,1740069005596,159.0,9.297e-05,3]
[353810859,1740069005945,171.0,9.297e-05,3]
[353810869,1740069031910,-449.04,9.778e-05,2]
[353810870,1740069031919,-2358.42,9.778e-05,2]
[353810871,1740069031929,-6020.92005173,9.828e-05,2]
[353810872,1740069031938,-300.0,9.899e-05,2]
[353810873,1740069031947,-1000.0,9.9e-05,2]
[353810874,1740069031957,-2500.0,9.9e-05,2]
[353810875,1740069031967,-1406.2124,9.9e-05,2]
[353810876,1740069031977,-1000.0,9.907e-05,2]
[353810877,1740069031988,-500.0,9.973e-05,2]
[353810878,1740069031997,-500.0,9.973e-05,2]
[353810879,1740069032007,-151.41397038,9.973e-05,2]
[353810880,1740069032016,-150.0,9.998e-05,2]
[353810881,1740069032026,-159.13910104,9.999e-05,2]
[353810882,1740069032036,-500.0,9.999e-05,2]
[353810883,1740069032045,-500.0,9.999e-05,2]
[353810884,1740069032055,-500.0,9.999e-05,2]
[353810885,1740069032065,-500.0,9.999e-05,2]
[353810886,1740069032074,-500.0,9.999e-05,2]
[353810887,1740069032084,-500.0,9.999e-05,2]
[353810888,1740069032094,-500.0,9.999e-05,2]
[353810889,1740069032103,-432.49126409,9.999e-05,2]
[353810890,1740069032113,-500.0,9.999e-05,2]
[353810891,1740069032123,-500.0,9.999e-05,2]
[353810892,1740069032132,-500.0,9.999e-05,2]
[353810893,1740069032142,-500.0,9.999e-05,2]
[353810894,1740069032152,-500.0,9.999e-05,2]
[353810895,1740069032161,-500.0,9.999e-05,2]
[353810896,1740069032171,-500.0,9.999e-05,2]
[353810897,1740069032187,-14468.03603336,0.0001,2]
[353810898,1740069032214,-2638.46326008,0.0001,2]
[353810899,1740069032226,-1395.09553501,0.0001,2]
[353810900,1740069032248,-417.65802599,0.0001,2]
[353810901,1740069032266,-3071.48316617,0.0001,2]
[353810902,1740069032277,-1097.72946846,0.0001,2]
[353810903,1740069032298,-1204.75909849,0.0001,2]
[353810904,1740069032309,-3861.16061818,0.0001,2]
[353810905,1740069032320,-4844.38900129,0.0001,2]
[353810906,1740069032331,-1885.6802487,0.0001,2]
[353810907,1740069032342,-2257.03968916,0.0001,2]
[353810919,1740069032919,-45.5381393,0.0001,2]
[353810920,1740069033134,-5475.30737808,0.0001,2]
[353810921,1740069033147,-540.0,0.0001,2]
[353810922,1740069033160,-535.47,0.0001,2]
[353810923,1740069033172,-295.49189213,0.0001,2]
[353810924,1740069033194,-5226.49427502,0.0001,2]
[353810925,1740069033212,-19554.6,0.0001,2]
[353810934,1740069037898,-384.38399999,0.0001,2]
[353810935,1740069037954,-2254.88152453,0.0001,2]
[353810936,1740069037967,-603.465158,0.0001,2]
[353810937,1740069037980,-811.5199704,0.0001,2]
[353810938,1740069037994,-12945.25124714,0.0001,2]
[353810939,1740069038116,-1990.14,0.0001,2]
[353810940,1740069038171,-197307.53227656,0.0001,2]
[353810946,1740069040180,-417.09,0.0001,2]
[353810947,1740069040195,-462.319,0.0001,2]
[353810948,1740069040394,-1079.15582281,0.0001,2]
[353810949,1740069040407,-572.01931225,0.0001,2]
[353810951,1740069040504,-979.0160197,0.0001,2]
[353810970,1740069043038,-1943.25529658,0.0001,2]
[353811003,1740069045919,-1675.31803137,0.0001,2]
[353811008,1740069335584,583.87,0.00013918,30]
[353811009,1740069651257,474.56,8.219e-05,2]